[Event "Wuerttemberg Rapid Teams 2024"]
[Site "B?blingen, Germany"]
[Date "2024.04.13"]
[Round "2.20"]
[White "Ameln, Till"]
[Black "Sokratov, Stanislav"]
[Result "0-1"]
[ECO "D00"]
[WhiteElo "1887"]
[BlackElo "2146"]
[Annotator "RC"]
[PlyCount "116"]
[EventDate "2024.04.13"]
[EventType "team-tourn"]
[SourceTitle "playchess.com"]
[Source "ChessBase"]
[SourceQuality "1"]
[TimeControl "900+5"]

1. d4 {[%emt 0:00:02]} d5 {[%emt 0:00:01]} 2. Bf4 {[%emt 0:00:03]} c5 {[%emt 0:00:05]} 3. e3 {[%emt 0:00:09]} Nc6 {[%emt 0:00:03]} 4. c3 {[%emt 0:00:06]} Qb6 {[%emt 0:00:03]} 5. Qb3 {[%emt 0:00:12]} c4 {[%emt 0:00:03]} 6. Qc2 {[%emt 0:00:12]} e5 {[%emt 0:00:04]} 7. dxe5 {[%emt 0:00:55]} Bf5 {[%emt 0:00:02]} 8. Qc1 {[%emt 0:00:17]} g5 {[%emt 0:00:03]} 9. Bg3 {[%emt 0:00:27]} h5 {[%emt 0:00:03]} 10. h3 {[%emt 0:00:02]} Bg7 {[%emt 0:00:16]} 11. Nf3 {[%emt 0:00:18]} h4 {[%emt 0:01:48]} 12. Bh2 {[%emt 0:00:02]} Nge7 {[%emt 0:00:16]} 13. Nxg5 {[%emt 0:01:06]} Bxe5 {[%emt 0:00:12]} 14. Bxe5 {[%emt 0:01:00]} Nxe5 {[%emt 0:00:02]} 15. Nd2 {[%emt 0:00:34]} N7c6 {[%emt 0:03:00]} 16. Ngf3 {[%emt 0:00:14]} Nd3+ {[%emt 0:00:25]} 17. Bxd3 {[%emt 0:00:06]} Bxd3 {[%emt 0:00:02]} 18. Nd4 {[%emt 0:00:20]} O-O-O {[%emt 0:00:12]} 19. N2f3 {[%emt 0:00:43]} Rde8 {[%emt 0:00:52]} 20. Nxc6 {[%emt 0:00:33]} Qxc6 {[%emt 0:00:18]} 21. Nd4 {[%emt 0:00:02]} Qg6 {[%emt 0:00:13]} 22. Rg1 {[%emt 0:00:47]} Rh5 {[%emt 0:00:33]} 23. Qd1 {[%emt 0:00:14]} Rg5 {[%emt 0:01:23]} 24. Qa4 {[%emt 0:01:41]} Rge5 {[%emt 0:04:06]} 25. Qxa7 {[%emt 0:01:29]} Rxe3+ {[%emt 0:00:03]} 26. fxe3 {[%emt 0:00:02]} Qg3+ {[%emt 0:00:08]} 27. Kd1 {[%emt 0:00:16]} Qxe3 {[%emt 0:00:34]} 28. Qc5+ {[%emt 0:00:10]} Kb8 {[%emt 0:01:19]} 29. Nc6+ {[%emt 0:00:09]} bxc6 {[%emt 0:00:01]} 30. Qxe3 {[%emt 0:00:02]} Rxe3 {[%emt 0:00:01]} 31. b4 {[%emt 0:00:35]} Be4 {[%emt 0:00:29]} 32. Kd2 {[%emt 0:00:30]} Rd3+ {[%emt 0:00:02]} 33. Kc2 {[%emt 0:00:16]} Rxh3+ {[%emt 0:00:05]} 34. Kb2 {[%emt 0:00:04]} Rg3 {[%emt 0:00:04]} 35. Raf1 {[%emt 0:00:21]} f5 {[%emt 0:00:16]} 36. a4 {[%emt 0:00:23]} Bxg2 {[%emt 0:00:36]} 37. Rxf5 {[%emt 0:00:28]} h3 {[%emt 0:00:01]} 38. Rh5 {[%emt 0:00:39]} d4 {[%emt 0:00:02]} 39. cxd4 {[%emt 0:00:05]} Rb3+ {[%emt 0:00:01]} 40. Kc2 {[%emt 0:00:10]} Rxb4 {[%emt 0:00:01]} 41. a5 {[%emt 0:00:27]} Kb7 {[%emt 0:00:06]} 42. Kc3 {[%emt 0:00:03]} Ra4 {[%emt 0:00:11]} 43. Re1 {[%emt 0:00:13]} Ka6 {[%emt 0:00:13]} 44. Rh8 {[%emt 0:00:06]} Ra3+ {[%emt 0:00:21]} 45. Kb2 {[%emt 0:00:12]} Rb3+ {[%emt 0:00:04]} 46. Kc2 {[%emt 0:00:06]} Kxa5 {[%emt 0:00:02]} 47. Ra8+ {[%emt 0:00:02]} Kb6 {[%emt 0:00:09]} 48. Rb8+ {[%emt 0:00:02]} Kc7 {[%emt 0:00:01]} 49. Rxb3 {[%emt 0:00:03]} cxb3+ {[%emt 0:00:01]} 50. Kxb3 {[%emt 0:00:07]} h2 {[%emt 0:00:01]} 51. Re7+ {[%emt 0:00:06]} Kd6 {[%emt 0:00:01]} 52. Rh7 {[%emt 0:00:08]} h1=Q {[%emt 0:00:03]} 53. Rxh1 {[%emt 0:00:02]} Bxh1 {[%emt 0:00:01]} 54. Kc3 {[%emt 0:00:10]} Kd5 {[%emt 0:00:04]} 55. Kd3 {[%emt 0:00:16]} Be4+ {[%emt 0:00:01]} 56. Ke3 {[%emt 0:00:02]} Bh7 {[%emt 0:00:02]} 57. Kd2 {[%emt 0:00:19]} Kxd4 {[%emt 0:00:02]} 58. Kc1 {[%emt 0:00:02]} Kc3 {[%emt 0:00:02]} 0-1

[Event "Wuerttemberg Rapid Teams 2024"]
[Site "B?blingen, Germany"]
[Date "2024.04.13"]
[Round "2.24"]
[White "Birkenmaier, Rainer"]
[Black "Gillam, Simon R"]
[Result "1-0"]
[ECO "D05"]
[WhiteElo "2111"]
[BlackElo "2235"]
[Annotator "RC"]
[PlyCount "45"]
[EventDate "2024.04.13"]
[EventType "team-tourn"]
[SourceTitle "playchess.com"]
[Source "ChessBase"]
[SourceQuality "1"]
[TimeControl "900+5"]

1. d4 {[%emt 0:00:05]} d5 {[%emt 0:00:20]} 2. Nf3 {[%emt 0:00:05]} e6 {[%emt 0:00:15]} 3. c3 {[%emt 0:00:09]} c5 {[%emt 0:00:22]} 4. e3 {[%emt 0:00:07]} Nc6 {[%emt 0:00:15]} 5. Nbd2 {[%emt 0:00:04]} Nf6 {[%emt 0:00:18]} 6. Bd3 {[%emt 0:00:05]} Bd6 {[%emt 0:00:26]} 7. O-O {[%emt 0:00:04]} O-O {[%emt 0:00:02]} 8. dxc5 {[%emt 0:00:03]} Bxc5 {[%emt 0:00:27]} 9. e4 {[%emt 0:00:04]} Re8 {[%emt 0:00:49]} 10. e5 {[%emt 0:00:52]} Ng4 {[%emt 0:00:49]} 11. Nb3 {[%emt 0:01:26]} Bb6 {[%emt 0:01:18]} 12. Qe2 {[%emt 0:03:31]} a6 {[%emt 0:00:41]} 13. h3 {[%emt 0:00:13]} Nxf2 {[%emt 0:02:51]} 14. Rxf2 {[%emt 0:00:05]} Bxf2+ {[%emt 0:00:05]} 15. Qxf2 {[%emt 0:00:03]} Qc7 {[%emt 0:00:27]} 16. Bf4 {[%emt 0:00:56]} Bd7 {[%emt 0:01:09]} 17. Nbd4 {[%emt 0:00:27]} Nxd4 {[%emt 0:01:18]} 18. cxd4 {[%emt 0:00:06]} Qb6 {[%emt 0:00:18]} 19. b3 {[%emt 0:00:32]} Rac8 {[%emt 0:00:11]} 20. Qh4 {[%emt 0:00:11]} h6 {[%emt 0:01:03]} 21. Bxh6 {[%emt 0:01:02]} gxh6 {[%emt 0:01:01]} 22. Qxh6 {[%emt 0:00:05]} Bb5 {[%emt 0:02:22]} 23. Bh7+ {[%emt 0:00:13]} 1-0

[Event "Wuerttemberg Rapid Teams 2024"]
[Site "B?blingen, Germany"]
[Date "2024.04.13"]
[Round "2.25"]
[White "Kottke, Markus"]
[Black "Foksha, Mischa"]
[Result "1-0"]
[ECO "B23"]
[WhiteElo "2218"]
[BlackElo "2021"]
[Annotator "RC"]
[PlyCount "39"]
[EventDate "2024.04.13"]
[EventType "team-tourn"]
[SourceTitle "playchess.com"]
[Source "ChessBase"]
[SourceQuality "1"]
[TimeControl "900+5"]

1. e4 {[%emt 0:00:03]} c5 {[%emt 0:00:05]} 2. Nc3 {[%emt 0:00:06]} g6 {[%emt 0:00:06]} 3. d4 {[%emt 0:00:02]} cxd4 {[%emt 0:00:05]} 4. Qxd4 {[%emt 0:00:02]} Nf6 {[%emt 0:00:03]} 5. e5 {[%emt 0:00:05]} Nc6 {[%emt 0:00:03]} 6. Qf4 {[%emt 0:00:11]} Nh5 {[%emt 0:00:20]} 7. Qe3 {[%emt 0:00:08]} Qa5 {[%emt 0:00:38]} 8. f4 {[%emt 0:00:16]} Bh6 {[%emt 0:00:19]} 9. Nge2 {[%emt 0:00:26]} O-O {[%emt 0:00:15]} 10. Bd2 {[%emt 0:00:36]} d6 {[%emt 0:00:16]} 11. exd6 {[%emt 0:00:49]} exd6 {[%emt 0:00:15]} 12. O-O-O {[%emt 0:00:38]} Bf5 {[%emt 0:00:44]} 13. h3 {[%emt 0:00:37]} Nb4 {[%emt 0:00:28]} 14. g4 {[%emt 0:01:56]} Bxc2 {[%emt 0:03:12]} 15. gxh5 {[%emt 0:00:01]} Bxd1 {[%emt 0:00:03]} 16. Kxd1 {[%emt 0:00:01]} Nxa2 {[%emt 0:00:07]} 17. hxg6 {[%emt 0:00:21]} hxg6 {[%emt 0:00:25]} 18. Bg2 {[%emt 0:00:43]} Rfe8 {[%emt 0:00:08]} 19. Qd4 {[%emt 0:00:22]} Nxc3+ {[%emt 0:00:48]} 20. Bxc3 {[%emt 0:00:05]} 1-0

[Event "Wuerttemberg Rapid Teams 2024"]
[Site "B?blingen, Germany"]
[Date "2024.04.13"]
[Round "2.26"]
[White "Foksha, Alexander"]
[Black "Hofer, Markus"]
[Result "0-1"]
[ECO "E54"]
[WhiteElo "1924"]
[BlackElo "2047"]
[Annotator "RC"]
[PlyCount "70"]
[EventDate "2024.04.13"]
[EventType "team-tourn"]
[SourceTitle "playchess.com"]
[Source "ChessBase"]
[SourceQuality "1"]
[TimeControl "900+5"]

1. d4 {[%emt 0:00:03]} d5 {[%emt 0:00:00]} 2. Nf3 {[%emt 0:00:07]} e6 {[%emt 0:00:10]} 3. e3 {[%emt 0:00:08]} Nf6 {[%emt 0:00:10]} 4. Bd3 {[%emt 0:00:04]} Nbd7 {[%emt 0:00:13]} 5. O-O {[%emt 0:00:14]} Bd6 {[%emt 0:00:03]} 6. Nbd2 {[%emt 0:00:50]} O-O {[%emt 0:03:08]} 7. e4 {[%emt 0:00:16]} dxe4 {[%emt 0:02:02]} 8. Nxe4 b6 {[%emt 0:00:23]} 9. Nxd6 {[%emt 0:01:26]} cxd6 {[%emt 0:00:00]} 10. Bg5 {[%emt 0:00:01]} Bb7 {[%emt 0:00:00]} 11. Qe2 {[%emt 0:00:06]} Qc7 {[%emt 0:00:24]} 12. c4 {[%emt 0:00:25]} d5 {[%emt 0:00:34]} 13. b3 {[%emt 0:01:27]} dxc4 {[%emt 0:02:06]} 14. bxc4 {[%emt 0:00:02]} Rac8 {[%emt 0:00:05]} 15. Rfd1 {[%emt 0:00:19]} Rfe8 {[%emt 0:00:13]} 16. Ne5 {[%emt 0:01:48]} Nxe5 {[%emt 0:00:33]} 17. dxe5 {[%emt 0:00:02]} Qc6 {[%emt 0:00:45]} 18. f3 {[%emt 0:01:43]} Nd7 {[%emt 0:00:19]} 19. Rac1 {[%emt 0:01:28]} h6 {[%emt 0:01:11]} 20. Bf4 {[%emt 0:00:24]} Nc5 {[%emt 0:00:14]} 21. Bc2 {[%emt 0:00:41]} Red8 {[%emt 0:00:08]} 22. Qe3 {[%emt 0:01:34]} Kf8 {[%emt 0:02:26]} 23. h4 {[%emt 0:00:44]} Ke7 {[%emt 0:00:05]} 24. Qa3 {[%emt 0:01:15]} Ke8 {[%emt 0:00:46]} 25. Be3 {[%emt 0:00:22]} Rxd1+ {[%emt 0:00:57]} 26. Bxd1 {[%emt 0:00:10]} Rd8 {[%emt 0:00:04]} 27. Bc2 {[%emt 0:00:33]} Ba6 {[%emt 0:00:08]} 28. Qb4 {[%emt 0:00:29]} Nd7 {[%emt 0:00:06]} 29. Be4 {[%emt 0:00:05]} Qc7 {[%emt 0:00:09]} 30. f4 {[%emt 0:00:03]} Nc5 {[%emt 0:00:03]} 31. Bc2 {[%emt 0:00:13]} Bb7 {[%emt 0:00:03]} 32. Kf2 {[%emt 0:00:07]} Qc6 {[%emt 0:00:02]} 33. Rg1 {[%emt 0:00:07]} Nd3+ {[%emt 0:00:03]} 34. Bxd3 {[%emt 0:00:05]} Rxd3 {[%emt 0:00:01]} 35. Ke2 {[%emt 0:00:03]} Qe4 {[%emt 0:00:03]} 0-1

[Event "Wuerttemberg Rapid Teams 2024"]
[Site "B?blingen, Germany"]
[Date "2024.04.13"]
[Round "2.28"]
[White "Valchev, Martin V"]
[Black "Brettschneider, Karl"]
[Result "0-1"]
[ECO "B20"]
[WhiteElo "1529"]
[BlackElo "1965"]
[Annotator "TA"]
[PlyCount "78"]
[EventDate "2024.04.13"]
[EventType "team-tourn"]
[SourceTitle "playchess.com"]
[Source "ChessBase"]
[SourceQuality "1"]
[TimeControl "900+5"]

{[%evp 9,78,10,22,-74,-15,0,12,-23,39,5,45,9,17,18,39,-34,34,0,75,25,70,16,67,72,61,60,97,68,88,88,106,104,113,72,164,154,119,80,85,4,14,35,88,-99,-79,-133,-123,-156,-145,-140,-148,-133,-135,-165,-165,-193,-194,-175,-43,-47,0,0,0,-47,-53,-149,-149,-152,-162,-29988,-29989]} 1. e4 {[%emt 0:00:03]} c5 {[%emt 0:00:03]} 2. a3 {[%emt 0:00:01]} Nc6 {[%emt 0:00:04]} 3. b4 {[%emt 0:00:02]} cxb4 {[%emt 0:00:02]} 4. axb4 {[%emt 0:00:01]} e5 {[%emt 0:00:16]} 5. c3 {[%emt 0:00:56]} Nf6 {[%emt 0:01:18]} 6. Qa4 {[%emt 0:01:04]} (6. b5 $11 {remains equal.}) 6... Be7 {[%emt 0:00:27]} (6... Nxe4 $17 7. d3 Nf6) 7. b5 $11 {[%emt 0:00:13]} Nb8 {[%emt 0:00:02]} 8. Nf3 {[%emt 0:01:06] The position is equal.} d6 {[%emt 0:01:30]} (8... d5 $11) 9. Qc2 {[%emt 0:01:33]} O-O {[%emt 0:00:13]} 10. d3 {[%emt 0:00:17]} Bg4 {[%emt 0:00:17]} 11. Be2 {[%emt 0:00:32]} Nbd7 {[%emt 0:00:56]} 12. Ba3 {[%emt 0:00:30]} (12. h3 $14 Bh5 13. c4) 12... Qc7 {[%emt 0:01:11]} ({Black should play} 12... d5 $15) 13. O-O {[%emt 0:00:27]} Nb6 {[%emt 0:00:35]} (13... a6 $11) 14. Nbd2 {[%emt 0:00:36]} (14. c4 $16) 14... d5 {[%emt 0:00:42]} 15. h3 {[%emt 0:00:48]} ({Better is} 15. Bxe7 $14 Qxe7 16. exd5) 15... dxe4 {[%emt 0:00:26]} (15... Bxa3 $11 16. Rxa3 Bd7) 16. hxg4 {[%emt 0:00:26]} exf3 {[%emt 0:00:02]} 17. Bxf3 {[%emt 0:00:13]} Nfd5 {[%emt 0:00:50]} 18. Bxe7 {[%emt 0:01:10]} Qxe7 {[%emt 0:00:15]} 19. Rfe1 {[%emt 0:00:38]} Qc7 {[%emt 0:01:09]} 20. c4 {[%emt 0:00:14]} Nf4 {[%emt 0:00:37]} 21. Qc3 {[%emt 0:00:55]} Rfe8 {[%emt 0:00:13]} (21... Nd7 $16 {might work better.}) 22. Ne4 {[%emt 0:01:05]} Nd7 {[%emt 0:00:49]} 23. g3 {[%emt 0:00:43]} Ne6 {[%emt 0:00:17]} 24. Rec1 {[%emt 0:00:24]} (24. Qa5 $16 {And now Qxc7 would win.} Qb8 25. Bg2) 24... Ndc5 {[%emt 0:00:11]} 25. Nxc5 {[%emt 0:00:08]} Nxc5 {[%emt 0:00:06]} (25... Nd4 $14) 26. d4 $2 {[%emt 0:00:11] [#]} (26. Bd5 $16) 26... exd4 $17 {[%emt 0:00:05]} 27. Qxd4 {[%emt 0:01:13]} (27. Qb2 $142) 27... Nb3 {[%emt 0:00:11][%csl LRa1,LRc1,LRd4]} 28. Qd5 {[%emt 0:00:02]} Nxc1 {[%emt 0:00:13]} 29. Rxc1 {[%emt 0:00:06]} Rab8 {[%emt 0:00:33]} 30. Kg2 {[%emt 0:01:02]} b6 {[%emt 0:00:07]} 31. Qf5 {[%emt 0:00:08]} g6 {[%emt 0:00:18]} 32. Qf6 {[%emt 0:00:16]} Qe5 {[%emt 0:00:11] Wards off Bd5} 33. Qh4 {[%emt 0:00:17]} Kg7 {[%emt 0:00:09]} (33... Rbd8 $19 {Strongly threatening ...g5.} 34. Rh1 Qg7) 34. Rh1 $15 {[%emt 0:00:08]} Rh8 {[%emt 0:00:21]} (34... h5 $15 35. gxh5 gxh5) 35. Qh6+ $11 {[%emt 0:00:03]} Kg8 {[%emt 0:00:01]} 36. Qd2 {[%emt 0:00:04] Dodges Rd8} (36. Rd1 $11 Qc7 37. Bd5) 36... Re8 $15 {[%emt 0:00:39][%cal Oh7h6]} 37. Qd7 {[%emt 0:00:12]} (37. Qh6 $1 $15) 37... Re7 $17 {[%emt 0:00:17]} 38. Qd8+ {[%emt 0:00:03]} Kg7 {[%emt 0:00:01]} 39. Bd5 $2 {[%emt 0:00:14] [#]} (39. Qd2 $19) 39... Rxd8 {[%emt 0:00:03] Black used his chance.   Weighted Error Value: White=0.51/Black=0.30.  Mistake:       	White=9     	Black=9      Inaccurate:     	White=5     	Black=3      OK:         	White=8     	Black=9      Best:        	White=1     	Black=6} 0-1

[Event "Wuerttemberg Rapid Teams 2024"]
[Site "B?blingen, Germany"]
[Date "2024.04.13"]
[Round "2.29"]
[White "Seitz, Patrick"]
[Black "Smierzchala, Zbigniew"]
[Result "1-0"]
[ECO "C41"]
[WhiteElo "2125"]
[BlackElo "1852"]
[Annotator "RC"]
[PlyCount "57"]
[EventDate "2024.04.13"]
[EventType "team-tourn"]
[SourceTitle "playchess.com"]
[Source "ChessBase"]
[SourceQuality "1"]
[TimeControl "900+5"]

1. e4 {[%emt 0:00:02]} d6 {[%emt 0:00:00]} 2. d4 {[%emt 0:00:02]} e5 {[%emt 0:00:00]} 3. Nf3 {[%emt 0:00:02]} Bg4 {[%emt 0:00:02]} 4. dxe5 {[%emt 0:00:02]} Nc6 {[%emt 0:00:02]} 5. exd6 {[%emt 0:00:03]} Bxd6 {[%emt 0:00:02]} 6. Be2 {[%emt 0:00:02]} Qe7 {[%emt 0:00:27]} 7. Nc3 {[%emt 0:00:16]} O-O-O {[%emt 0:00:16]} 8. Bd2 {[%emt 0:00:08]} Nf6 {[%emt 0:00:16]} 9. O-O {[%emt 0:00:07]} Nxe4 {[%emt 0:01:52]} 10. Nxe4 {[%emt 0:01:35]} Qxe4 {[%emt 0:00:03]} 11. h3 {[%emt 0:00:17]} Bh5 {[%emt 0:00:21]} 12. Re1 {[%emt 0:00:07]} Qe8 {[%emt 0:02:34]} 13. Ng5 {[%emt 0:01:13]} Bxe2 {[%emt 0:00:12]} 14. Rxe2 {[%emt 0:00:02]} Qf8 {[%emt 0:00:11]} 15. c3 {[%emt 0:00:59]} h6 {[%emt 0:00:33]} 16. Nf3 {[%emt 0:00:12]} Bf4 {[%emt 0:00:11]} 17. Qa4 {[%emt 0:00:22]} Bxd2 {[%emt 0:00:14]} 18. Nxd2 {[%emt 0:00:03]} Qc5 {[%emt 0:00:25]} 19. Nb3 {[%emt 0:00:22]} Qb6 {[%emt 0:00:16]} 20. Rae1 {[%emt 0:00:17]} g5 {[%emt 0:00:29]} 21. Qc4 {[%emt 0:00:32]} f5 {[%emt 0:00:32]} 22. Qe6+ {[%emt 0:00:07]} Kb8 {[%emt 0:00:02]} 23. Qxf5 {[%emt 0:00:02]} Rdf8 {[%emt 0:00:14]} 24. Qxf8+ {[%emt 0:01:13]} Rxf8 {[%emt 0:00:14]} 25. Re8+ {[%emt 0:00:01]} Nd8 {[%emt 0:00:23]} 26. Rxf8 {[%emt 0:00:02]} Kc8 {[%emt 0:00:21]} 27. Rd1 {[%emt 0:00:12]} c6 {[%emt 0:00:11]} 28. Rfxd8+ {[%emt 0:00:02]} Qxd8 {[%emt 0:00:03]} 29. Rxd8+ {[%emt 0:00:02]} 1-0

[Event "Wuerttemberg Rapid Teams 2024"]
[Site "B?blingen, Germany"]
[Date "2024.04.13"]
[Round "2.30"]
[White "Diener, Reinhard"]
[Black "Narr, Kevin"]
[Result "0-1"]
[ECO "C11"]
[WhiteElo "2125"]
[BlackElo "1977"]
[Annotator "RC"]
[PlyCount "28"]
[EventDate "2024.04.13"]
[EventType "team-tourn"]
[SourceTitle "playchess.com"]
[Source "ChessBase"]
[SourceQuality "1"]
[TimeControl "900+5"]

1. e4 {[%emt 0:00:03]} e6 {[%emt 0:00:00]} 2. d4 {[%emt 0:00:02]} d5 {[%emt 0:00:00]} 3. Nc3 {[%emt 0:00:06]} Nf6 {[%emt 0:00:01]} 4. e5 {[%emt 0:00:02]} Nfd7 {[%emt 0:00:00]} 5. f4 {[%emt 0:00:01]} c5 {[%emt 0:00:01]} 6. Nf3 {[%emt 0:00:08]} Nc6 {[%emt 0:00:01]} 7. Ne2 {[%emt 0:00:01]} Be7 {[%emt 0:00:03]} 8. c3 {[%emt 0:00:06]} O-O {[%emt 0:00:01]} 9. Ng3 {[%emt 0:00:06]} Qb6 {[%emt 0:00:53]} 10. Be2 {[%emt 0:01:00]} f6 {[%emt 0:00:26]} 11. O-O {[%emt 0:00:58]} cxd4 {[%emt 0:00:26]} 12. cxd4 {[%emt 0:03:29]} fxe5 {[%emt 0:00:01]} 13. Be3 {[%emt 0:00:36]} exf4 {[%emt 0:00:17]} 14. Bd3 {[%emt 0:01:49]} fxe3 {[%emt 0:00:20]} 0-1

[Event "Wuerttemberg Rapid Teams 2024"]
[Site "B?blingen, Germany"]
[Date "2024.04.13"]
[Round "2.34"]
[White "Kaufmann, Thorsten"]
[Black "Eitel, Lukas"]
[Result "1-0"]
[ECO "C63"]
[WhiteElo "2057"]
[BlackElo "1825"]
[Annotator "NA RC"]
[PlyCount "53"]
[EventDate "2024.04.13"]
[EventType "team-tourn"]
[SourceTitle "playchess.com"]
[Source "ChessBase"]
[SourceQuality "1"]
[TimeControl "900+5"]

1. e4 {[%emt 0:00:01]} e5 {[%emt 0:00:01]} 2. Nf3 {[%emt 0:00:02]} Nc6 {[%emt 0:00:00]} 3. Bb5 {[%emt 0:00:01]} f5 {[%emt 0:00:02]} 4. Nc3 {[%emt 0:00:05]} fxe4 {[%emt 0:00:03]} 5. Nxe4 {[%emt 0:00:02]} d5 {[%emt 0:00:01]} 6. Nc3 {[%emt 0:00:06]} e4 {[%emt 0:00:29]} 7. Nd4 {[%emt 0:00:28]} Qg5 {[%emt 0:01:27]} 8. Nxc6 {[%emt 0:01:02]} a6 {[%emt 0:00:57]} 9. h4 {[%emt 0:02:53]} Qxg2 {[%emt 0:00:14]} 10. Qh5+ {[%emt 0:00:06]} g6 {[%emt 0:00:17]} 11. Qe5+ {[%emt 0:00:02]} Ne7 {[%emt 0:00:24]} 12. Nxe7+ {[%emt 0:00:12]} axb5 {[%emt 0:12:10]} 13. Nxc8+ {[%emt 0:00:00]} Kd7 {[%emt 0:00:00]} 14. Rf1 {[%emt 0:00:00]} Rxc8 {[%emt 0:00:00]} 15. Qxh8 {[%emt 0:00:00]} Bc5 {[%emt 0:00:00]} 16. Qxh7+ {[%emt 0:00:26]} Kc6 {[%emt 0:00:00]} 17. Qf7 {[%emt 0:00:06]} Rf8 {[%emt 0:00:00]} 18. Qe6+ {[%emt 0:00:16]} Bd6 {[%emt 0:00:00]} 19. Qxd5+ {[%emt 0:00:02]} Kd7 {[%emt 0:00:00]} 20. Qxb5+ {[%emt 0:00:55]} Kc8 {[%emt 0:00:00]} 21. Qg5 {[%emt 0:00:20]} Qf3 {[%emt 0:00:00]} 22. Qe3 {[%emt 0:00:04]} Qg2 {[%emt 0:00:00]} 23. Nxe4 {[%emt 0:00:14]} Bf4 {[%emt 0:00:00]} 24. Qe2 {[%emt 0:00:12]} Kd8 {[%emt 0:00:00]} 25. d3 {[%emt 0:00:07]} Be5 {[%emt 0:00:00]} 26. Bg5+ {[%emt 0:00:04]} Kc8 {[%emt 0:00:00]} 27. O-O-O {[%emt 0:00:16]} 1-0

[Event "Wuerttemberg Rapid Teams 2024"]
[Site "B?blingen, Germany"]
[Date "2024.04.13"]
[Round "2.37"]
[White "Strathmann, Sacha"]
[Black "Li, Yunqi"]
[Result "0-1"]
[ECO "C02"]
[WhiteElo "2125"]
[BlackElo "1940"]
[Annotator "RC"]
[PlyCount "156"]
[EventDate "2024.04.13"]
[EventType "team-tourn"]
[SourceTitle "playchess.com"]
[Source "ChessBase"]
[SourceQuality "1"]
[TimeControl "900+5"]

1. e4 {[%emt 0:00:02]} e6 {[%emt 0:00:01]} 2. d4 {[%emt 0:00:10]} d5 {[%emt 0:00:01]} 3. e5 {[%emt 0:00:11]} c5 {[%emt 0:00:02]} 4. f4 {[%emt 0:00:05]} cxd4 {[%emt 0:00:34]} 5. Nf3 {[%emt 0:00:05]} Nc6 {[%emt 0:00:04]} 6. a3 {[%emt 0:00:03]} Qb6 {[%emt 0:00:31]} 7. b4 {[%emt 0:00:03]} Bd7 {[%emt 0:00:06]} 8. Bd3 {[%emt 0:00:04]} f6 {[%emt 0:00:30]} 9. Qe2 {[%emt 0:00:07]} Be7 {[%emt 0:00:34]} 10. O-O {[%emt 0:00:15]} O-O-O {[%emt 0:01:00]} 11. Nbd2 {[%emt 0:00:13]} Nh6 {[%emt 0:00:19]} 12. Nb3 {[%emt 0:00:03]} Rhf8 {[%emt 0:00:36]} 13. Bb2 {[%emt 0:00:10]} fxe5 {[%emt 0:00:54]} 14. Nxe5 {[%emt 0:00:26]} Bd6 {[%emt 0:01:11]} 15. Nxc6 {[%emt 0:01:09]} Qxc6 {[%emt 0:00:26]} 16. Nxd4 {[%emt 0:00:55]} Qb6 {[%emt 0:00:05]} 17. Kh1 {[%emt 0:00:05]} Rde8 {[%emt 0:00:20]} 18. Nf3 {[%emt 0:00:17]} Nf5 {[%emt 0:00:51]} 19. c4 {[%emt 0:00:17]} Qd8 {[%emt 0:00:40]} 20. Qd2 {[%emt 0:02:59]} Kb8 {[%emt 0:00:28]} 21. Ne5 {[%emt 0:01:19]} Bc8 {[%emt 0:00:35]} 22. Rad1 {[%emt 0:00:36]} Qh4 {[%emt 0:00:33]} 23. Bxf5 {[%emt 0:00:04]} Rxf5 {[%emt 0:00:19]} 24. cxd5 {[%emt 0:00:37]} exd5 {[%emt 0:00:19]} 25. Qxd5 {[%emt 0:00:29]} Bc7 {[%emt 0:00:41]} 26. g3 {[%emt 0:03:02]} Qh3 {[%emt 0:01:15]} 27. Qg2 {[%emt 0:00:28]} Qh6 {[%emt 0:00:27]} 28. Nd7+ {[%emt 0:00:22]} Bxd7 {[%emt 0:00:22]} 29. Rxd7 {[%emt 0:00:03]} g5 {[%emt 0:01:45]} 30. Rc1 {[%emt 0:01:55]} Qe6 {[%emt 0:01:11]} 31. Rdxc7 {[%emt 0:00:19]} Qe1+ {[%emt 0:00:03]} 32. Qf1 {[%emt 0:00:18]} Qxf1+ {[%emt 0:00:14]} 33. Rxf1 {[%emt 0:00:01]} Kxc7 {[%emt 0:00:01]} 34. Kg1 {[%emt 0:00:03]} gxf4 {[%emt 0:00:14]} 35. g4 {[%emt 0:00:01]} Rd5 {[%emt 0:00:05]} 36. h4 {[%emt 0:00:14]} Rd2 {[%emt 0:00:07]} 37. Bf6 {[%emt 0:00:00]} Ree2 {[%emt 0:00:26]} 38. Rc1+ {[%emt 0:00:06]} Kd7 {[%emt 0:00:03]} 39. Bg5 {[%emt 0:00:02]} Rg2+ {[%emt 0:00:05]} 40. Kf1 {[%emt 0:00:01]} Rdf2+ {[%emt 0:00:07]} 41. Ke1 {[%emt 0:00:02]} f3 {[%emt 0:00:05]} 42. Rc3 {[%emt 0:00:31]} Re2+ {[%emt 0:00:18]} 43. Kf1 {[%emt 0:00:03]} Rxg4 {[%emt 0:00:03]} 44. Rxf3 {[%emt 0:00:02]} Ra2 {[%emt 0:00:03]} 45. Rf7+ {[%emt 0:00:02]} Kc6 {[%emt 0:00:02]} 46. Rxh7 {[%emt 0:00:04]} Rd4 {[%emt 0:00:07]} 47. Re7 {[%emt 0:00:03]} Rd1+ {[%emt 0:00:02]} 48. Re1 {[%emt 0:00:02]} Rxe1+ {[%emt 0:00:01]} 49. Kxe1 {[%emt 0:00:01]} Kd7 {[%emt 0:00:02]} 50. Bc1 {[%emt 0:00:05]} Ke6 {[%emt 0:00:03]} 51. h5 {[%emt 0:00:01]} Kf5 {[%emt 0:00:09]} 52. h6 {[%emt 0:00:01]} Kg6 {[%emt 0:00:01]} 53. Kd1 {[%emt 0:00:03]} b5 {[%emt 0:00:08]} 54. Bd2 {[%emt 0:00:02]} Rxa3 {[%emt 0:00:09]} 55. Kc2 {[%emt 0:00:01]} Rh3 {[%emt 0:00:02]} 56. Kb2 {[%emt 0:00:04]} a6 {[%emt 0:00:03]} 57. Kc2 {[%emt 0:00:03]} Kf5 {[%emt 0:00:01]} 58. Bc1 {[%emt 0:00:02]} Ke4 {[%emt 0:00:03]} 59. Bd2 {[%emt 0:00:01]} Kd4 {[%emt 0:00:02]} 60. Kb2 {[%emt 0:00:06]} Kc4 {[%emt 0:00:02]} 61. Kc2 {[%emt 0:00:01]} Rh2 {[%emt 0:00:06]} 62. Kc1 {[%emt 0:00:06]} Kd3 {[%emt 0:00:20]} 63. Bg5 {[%emt 0:00:04]} Kc3 {[%emt 0:00:04]} 64. Kd1 {[%emt 0:00:10]} Kxb4 {[%emt 0:00:04]} 65. Bf4 {[%emt 0:00:01]} Rh3 {[%emt 0:00:06]} 66. Ke2 {[%emt 0:00:02]} a5 {[%emt 0:00:02]} 67. Kf2 {[%emt 0:00:01]} a4 {[%emt 0:00:04]} 68. Kg2 {[%emt 0:00:01]} Rh5 {[%emt 0:00:01]} 69. Kg3 {[%emt 0:00:01]} a3 {[%emt 0:00:02]} 70. Kg4 {[%emt 0:00:09]} Rh1 {[%emt 0:00:02]} 71. Kg5 {[%emt 0:00:02]} a2 {[%emt 0:00:05]} 72. Be5 {[%emt 0:00:01]} Ka3 {[%emt 0:00:02]} 73. Kg6 {[%emt 0:00:01]} b4 {[%emt 0:00:01]} 74. h7 {[%emt 0:00:01]} b3 {[%emt 0:00:02]} 75. Bd6+ {[%emt 0:00:03]} Kb2 {[%emt 0:00:06]} 76. Kg7 {[%emt 0:00:03]} a1=Q {[%emt 0:00:06]} 77. Be5+ {[%emt 0:00:01]} Ka2 {[%emt 0:00:01]} 78. Bxa1 {[%emt 0:00:03]} Kxa1 {[%emt 0:00:02]} 0-1